[Event "24th Hoogeschool Zeeland 2022"]
[Site "Vlissingen"]
[Date "2022.08.13"]
[Round "9.6"]
[White "Grutter, Tim"]
[Black "Leenhouts, Koen"]
[Result "1-0"]
[ECO "C60"]
[WhiteElo "2246"]
[BlackElo "2442"]
[Annotator "TA"]
[PlyCount "83"]
[EventDate "2022.08.05"]
[EventType "swiss"]
[EventCountry "NED"]
[SourceTitle "playchess.com"]
[Source "ChessBase"]
[SourceQuality "1"]
[TimeControl "40/5400+30:1800+30"]

{[%evp 12,83,27,15,48,20,33,27,27,20,28,20,21,0,0,-18,-25,-17,-21,-21,-12,-21,-21,-16,0,-46,0,0,0,-1,-8,-7,-10,-20,-24,-27,4,13,13,0,57,65,58,55,73,60,70,26,27,0,0,4,35,39,37,47,90,81,118,117,126,122,142,141,246,241,261,187,395,389,4922,4910,1607,1195]} 1. e4 {[%emt 0:00:01] ChessBase II} e5 {[%emt 0:01:22][%cal Be7e5,Be5d4][%mdl 32]} 2. Nf3 {[%emt 0:00:11]} Nc6 {[%emt 0:00:17]} 3. Bb5 {[%emt 0:00:04]} g6 {[%emt 0:00:07]} 4. d4 {[%emt 0:03:33]} exd4 {[%emt 0:00:10]} 5. Bg5 {[%emt 0:05:06]} Be7 {[%emt 0:00:14]} 6. Bxe7 {[%emt 0:00:38]} Qxe7 {[%emt 0:00:08]} 7. O-O {[%emt 0:00:48]} Qc5 {[%emt 0:03:52] C60: Ruy Lopez: Unusual Black 3rd moves and 3...g6.} 8. Bxc6 {[%emt 0:01:18]} dxc6 {[%emt 0:00:49]} 9. Qxd4 {[%emt 0:00:24]} Qxd4 {[%emt 0:00:29] White has an edge.} 10. Nxd4 {[%emt 0:00:04]} Bd7 {[%emt 0:00:09]} 11. Nc3 {[%emt 0:02:24]} O-O-O {[%emt 0:04:58] [#]} 12. Rfd1 $146 {[%emt 0:02:43]} ({Predecessor:} 12. Rad1 Nf6 13. f3 Rde8 14. Kf2 g5 15. Rfe1 Re5 16. Nb3 Rhe8 17. h3 Nh5 18. Nc1 {½-½ (65) Martinez Duany,L (2509)-Demchenko,A (2671) Rochefort 2018 EXT 2019 [ChessBase II]}) 12... c5 {[%emt 0:03:47]} 13. Nb3 {[%emt 0:01:44]} b6 {[%emt 0:00:48]} 14. Nd5 {[%emt 0:09:30]} Be6 {[%emt 0:08:59]} 15. Nf4 {[%emt 0:01:58]} Ne7 {[%emt 0:04:55]} 16. Nxe6 {[%emt 0:01:30]} fxe6 {[%emt 0:00:02]} 17. Nd2 {[%emt 0:07:34]} Nc6 {[%emt 0:02:40]} 18. Nf3 {[%emt 0:15:02]} (18. Nc4 $11) 18... Nd4 {[%emt 0:08:46]} (18... Rdg8 $15 {is more appropriate.}) 19. Ne1 $11 {[%emt 0:01:33]} g5 {[%emt 0:05:37]} 20. c3 {[%emt 0:03:38]} Nc6 {[%emt 0:01:05]} 21. Kf1 {[%emt 0:00:58]} Rdf8 {[%emt 0:04:47]} (21... Rd6 {is interesting.} 22. Ke2 Rf8 23. b3 Ne5) 22. Ke2 {[%emt 0:03:49]} g4 {[%emt 0:01:53]} 23. b3 {[%emt 0:02:56]} h5 {[%emt 0:06:44][%cal Oc5c4]} (23... c4 $5) 24. Nd3 {[%emt 0:00:13]} (24. Ke3 {keeps more tension.} h4 25. Nd3 h3 26. Rg1) 24... h4 {[%emt 0:00:38]} 25. f4 {[%emt 0:02:15]} gxf3+ {[%emt 0:10:08]} (25... g3 $11) 26. gxf3 $14 {[%emt 0:00:30]} Rh5 {[%emt 0:01:51][%cal Oc5c4]} 27. Rg1 {[%emt 0:01:57]} b5 {[%emt 0:00:07]} 28. Ke3 {[%emt 0:03:01] Hoping for a4.} c4 $1 {[%emt 0:09:22]} 29. Nf4 {[%emt 0:00:39]} Rh6 {[%emt 0:00:21] White must now prevent ...Rhf6.} 30. Rg6 {[%emt 0:01:05]} (30. Raf1 {feels hotter.} Rhf6 31. Ng6 Rg8 32. Nxh4 Rh8 33. Ng6) 30... Rxg6 {[%emt 0:01:16]} 31. Nxg6 $11 {[%emt 0:00:01][%mdl 4096] Endgame KRN-KRN} Rd8 {[%emt 0:06:15]} (31... Rg8 $5 {[%cal Rg8g6]} 32. Rg1 (32. Nxh4 Rh8 $11) 32... cxb3 33. axb3 a5 $11) 32. bxc4 {[%emt 0:00:46]} bxc4 {[%emt 0:00:04]} 33. Rc1 {[%emt 0:01:52]} Rg8 {[%emt 0:01:42]} 34. Rg1 {[%emt 0:00:47]} ({Much weaker is} 34. Nxh4 Rh8 35. Ng6 Rxh2 $11) 34... e5 {[%emt 0:05:47]} 35. f4 $1 {[%emt 0:01:13] White is more active.} exf4+ {[%emt 0:00:02]} 36. Kxf4 {[%emt 0:00:07]} h3 {[%emt 0:00:28]} 37. Rg3 {[%emt 0:01:44]} Kb7 {[%emt 0:00:51] [#]} (37... a5 $16 {is a better defense.} 38. Kf5 Rd8) 38. e5 $1 $18 {[%emt 0:01:57]} Kb6 {[%emt 0:05:41]} 39. Kf5 {[%emt 0:01:28]} Ne7+ $2 {[%emt 0:02:10] [#]} (39... Rd8 40. Rxh3 Rd2) 40. Kf6 $1 {[%emt 0:00:20]} ({Not} 40. Nxe7 $2 Rxg3 41. e6 (41. hxg3 $2 {perishes.} h2 $19) 41... Rg2 42. Nc8+ Kb7 $19) 40... Nxg6 {[%emt 0:00:37]} (40... Nc6 41. e6 Rd8 42. Rxh3 Rd2) 41. Rxg6 {[%emt 0:30:15]} Rb8 {[%emt 0:30:20]} 42. Kf7+ {[%emt 0:01:06] Weighted Error Value: White=0.08 (flawless) /Black=0.22 (precise)} 1-0

[Event "24th Hoogeschool Zeeland 2022"]
[Site "Vlissingen"]
[Date "2022.08.13"]
[Round "9.7"]
[White "Dhulipalla Bala Chandra Prasad"]
[Black "Royal, Shreyas"]
[Result "1/2-1/2"]
[ECO "E16"]
[WhiteElo "2423"]
[BlackElo "2353"]
[Annotator "TA"]
[PlyCount "41"]
[EventDate "2022.08.05"]
[EventType "swiss"]
[EventCountry "NED"]
[SourceTitle "playchess.com"]
[Source "ChessBase"]
[SourceQuality "1"]
[TimeControl "40/5400+30:1800+30"]

{[%evp 17,41,0,16,8,19,14,9,31,36,31,23,30,45,19,23,39,27,23,22,0,0,-18,6,0,0,-31]} 1. d4 {[%emt 0:00:11]} Nf6 {[%emt 0:00:07]} 2. c4 {[%emt 0:00:04]} e6 {[%emt 0:00:22]} 3. g3 {[%emt 0:00:05]} d5 {[%emt 0:00:10]} 4. Bg2 {[%emt 0:00:05]} Bb4+ {[%emt 0:00:07]} 5. Nd2 {[%emt 0:00:06]} O-O {[%emt 0:00:29]} 6. Ngf3 {[%emt 0:00:07]} b6 {[%emt 0:00:14]} 7. O-O {[%emt 0:00:12]} Bb7 {[%emt 0:00:07]} 8. a3 {[%emt 0:00:17]} Be7 {[%emt 0:01:08]} 9. cxd5 $1 {[%emt 0:00:09] The main line 9.cxd5 scores better than 9.b4.} exd5 {[%emt 0:00:23]} 10. b4 {[%emt 0:00:04] E16: Queen's Indian: 4 g3 Bb7 5 Bg2 Bb4+.} Nbd7 {[%emt 0:10:14]} 11. Ne5 {[%emt 0:18:12]} c5 {[%emt 0:10:48]} 12. bxc5 {[%emt 0:01:33]} bxc5 {[%emt 0:01:07]} 13. Rb1 {[%emt 0:00:35]} Rb8 {[%emt 0:09:36]} 14. Qa4 {[%emt 0:05:39]} cxd4 {[%emt 0:09:52]} 15. Nxd7 {[%emt 0:02:10]} Qxd7 {[%emt 0:01:52]} 16. Qxa7 {[%emt 0:01:49] [#]} Qc6 $146 {[%emt 0:09:37]} ({Predecessor:} 16... Rfc8 17. Qxd4 Ba6 18. Rxb8 Rxb8 19. Nf3 Ne4 20. Ne5 Qb7 21. Bf3 Bf6 22. Rd1 Qb3 23. Qxd5 {½-½ (30) Ingersol,H (2417)-Isolfsson,E (2420) ICCF email 2014}) 17. Qxd4 {[%emt 0:09:01]} Ba6 {[%emt 0:01:56]} 18. Rxb8 {[%emt 0:18:55] The position is equal.} Rxb8 {[%emt 0:00:10]} 19. Qa7 {[%emt 0:03:07]} Re8 {[%emt 0:00:54] [#] White must now prevent ...Bc5.} 20. Nb3 {[%emt 0:04:27] Prevents Bc5.} Bxe2 {[%emt 0:01:27]} 21. Re1 {[%emt 0:02:43] Weighted Error Value: White=0.04 (flawless) /Black=0.04 (flawless)} (21. Nd4 $5 {[%cal Rd4c6]} Qc5 22. Qxc5 Bxc5 23. Nxe2 Rxe2 24. Bg5 $11) 1/2-1/2

[Event "24th Hoogeschool Zeeland 2022"]
[Site "Vlissingen"]
[Date "2022.08.13"]
[Round "9.8"]
[White "Pham, Khoi"]
[Black "Saketh, Pedagandham"]
[Result "1-0"]
[ECO "C84"]
[WhiteElo "2317"]
[BlackElo "1928"]
[Annotator "TA"]
[PlyCount "95"]
[EventDate "2022.08.05"]
[EventType "swiss"]
[EventCountry "NED"]
[SourceTitle "playchess.com"]
[Source "ChessBase"]
[SourceQuality "1"]
[TimeControl "40/5400+30:1800+30"]

{[%evp 14,95,14,10,14,13,19,15,15,14,20,-59,-55,-56,-56,-45,-66,-47,-33,-38,-42,-73,-79,-104,-50,-75,-13,-13,-14,-10,-6,-23,0,0,0,0,88,75,95,25,70,66,67,69,86,0,1,0,8,0,11,0,19,19,27,19,18,33,25,27,29,20,22,22,79,84,281,289,406,389,855,589,1210,1028,1185,1085,1081,1079,938,750,29973,29974,29990,29991]} 1. e4 {[%emt 0:00:01]} e5 {[%emt 0:14:46]} 2. Nf3 {[%emt 0:00:19]} Nc6 {[%emt 0:00:30]} 3. Bb5 {[%emt 0:00:06]} a6 {[%emt 0:00:26]} 4. Ba4 {[%emt 0:00:04]} Nf6 {[%emt 0:00:28]} 5. O-O {[%emt 0:00:17]} Be7 {[%emt 0:00:31]} 6. d3 {[%emt 0:00:36]} b5 {[%emt 0:01:27]} 7. Bb3 {[%emt 0:01:17]} d6 {[%emt 0:00:28]} 8. c3 {[%emt 0:00:32][%cal Bc2c3,Bc3d4][%mdl 32]} Na5 {[%emt 0:00:37] C84: Closed Ruy Lopez: Unusual White 6th moves.} 9. Bc2 {[%emt 0:00:07]} c5 {[%emt 0:00:09]} 10. d4 {[%emt 0:01:19]} cxd4 {[%emt 0:01:48] The position is equal.} 11. cxd4 {[%emt 0:00:17]} O-O {[%emt 0:00:08] [#]} 12. b3 $146 {[%emt 0:08:10]} (12. Nc3 $11) ({Predecessor:} 12. h3 Re8 13. d5 Bd7 14. Nc3 Qb8 15. Bd3 Rc8 16. Ne2 Nb7 17. g4 Nc5 18. Ng3 Nxd3 19. Qxd3 {0-1 (40) Carlsen,M (2882)-Ding,L (2805) Saint Louis 2019}) 12... Nc6 {[%emt 0:08:34]} 13. Nc3 {[%emt 0:15:24]} Bg4 {[%emt 0:05:17] And now ...Nxd4 would win.} 14. Ne2 {[%emt 0:02:34]} Bxf3 {[%emt 0:04:19]} (14... exd4 {with more complications.} 15. Nexd4 Nxd4 16. Qxd4 Bxf3 17. gxf3 Rc8) 15. gxf3 {[%emt 0:00:06]} Nxd4 {[%emt 0:00:14]} 16. Nxd4 {[%emt 0:00:09]} exd4 {[%emt 0:00:05]} 17. Qxd4 {[%emt 0:02:57]} Rc8 {[%emt 0:06:47]} 18. Qd1 {[%emt 0:08:25]} Qd7 {[%emt 0:09:17]} (18... Qc7 $1 $17 {[%cal Rc7c2]} 19. Bd3 d5) 19. Bd3 {[%emt 0:07:00]} Nh5 {[%emt 0:08:40]} (19... Qh3 $17 {Strongly threatening ...Nh5.} 20. Kh1 Nh5) 20. f4 $11 {[%emt 0:12:44]} Qh3 {[%emt 0:06:43][%cal Oc8c1]} 21. Be2 $1 {[%emt 0:03:59]} Nf6 {[%emt 0:10:49]} 22. Bf3 {[%emt 0:03:07]} h5 {[%emt 0:05:06]} 23. Bg2 {[%emt 0:03:16]} Qh4 {[%emt 0:04:49]} 24. h3 {[%emt 0:01:27]} Rc3 {[%emt 0:04:07] [#]} (24... Rfd8 $11) 25. Be3 $1 $16 {[%emt 0:03:13]} Rfc8 {[%emt 0:01:31]} 26. Re1 {[%emt 0:02:04]} (26. Qd2 $16) 26... Rc2 {[%emt 0:02:00]} 27. Rc1 {[%emt 0:02:45]} Rxc1 {[%emt 0:00:44]} 28. Bxc1 {[%emt 0:00:04]} Nh7 {[%emt 0:00:55]} 29. Qd4 {[%emt 0:08:55]} (29. Rf1 $16) 29... Rc2 {[%emt 0:02:25]} 30. a4 {[%emt 0:07:51]} Bf6 {[%emt 0:00:39]} 31. Qb6 {[%emt 0:06:55]} Bc3 {[%emt 0:00:34]} 32. Rd1 {[%emt 0:00:00] Hoping for Be3.} Bb4 {[%emt 0:00:31] aiming for ...Bc5.} 33. Be3 {[%emt 0:00:00]} ({Not} 33. axb5 $2 Bc5 34. Qxc5 dxc5 $19) 33... Bc5 {[%emt 0:00:01]} 34. Bxc5 {[%emt 0:00:09]} dxc5 {[%emt 0:00:01]} 35. Qd8+ {[%emt 0:00:45]} Qxd8 {[%emt 0:00:12]} 36. Rxd8+ $14 {[%emt 0:00:05][%mdl 4096] Endgame KRB-KRN} Nf8 {[%emt 0:00:02]} 37. axb5 {[%emt 0:00:58]} axb5 {[%emt 0:00:06]} 38. Rb8 {[%emt 0:00:16]} b4 {[%emt 0:00:15]} (38... Rc1+ $11 39. Bf1 Re1) 39. Bf1 $16 {[%emt 0:00:04]} g5 $2 {[%emt 0:01:07] [#] This move loses the game for Black.} (39... Rc1 $16 {was called for.}) 40. f5 $1 $18 {[%emt 0:01:11][%cal Bf4f5,Bf5f6][%mdl 32]} ({Don't take} 40. fxg5 $6 Kg7 $16) 40... Kg7 {[%emt 0:00:53]} (40... Rc1 {was necessary.} 41. Kg2 Re1) 41. f6+ {[%emt 0:31:01]} Kg8 $2 {[%emt 0:04:47]} (41... Kxf6 42. Rxf8 Ke5 43. Rxf7 Kxe4 44. Re7+ Kf3) 42. Bc4 {[%emt 0:00:00]} Rd2 {[%emt 0:03:35]} 43. e5 {[%emt 0:00:00][%cal Be4e5,Be5e6,Be6e7][%mdl 32]} Rd1+ {[%emt 0:00:52]} 44. Kg2 {[%emt 0:00:00] White wants to mate with e6.} Re1 {[%emt 0:00:04]} 45. Re8 {[%emt 0:00:00]} Re4 {[%emt 0:01:00]} 46. f3 {[%emt 0:00:00]} Rf4 {[%emt 0:00:54]} 47. e6 {[%emt 0:00:00]} Rxc4 {[%emt 0:00:31]} 48. e7 {[%emt 0:00:00][%mdl 64] Pin.  Weighted Error Value: White=0.18 (very precise) /Black=0.46} 1-0

[Event "24th Hoogeschool Zeeland 2022"]
[Site "Vlissingen"]
[Date "2022.08.13"]
[Round "9.9"]
[White "Van Delft, Merijn"]
[Black "Lohr, Maximilian"]
[Result "1/2-1/2"]
[ECO "C42"]
[WhiteElo "2383"]
[BlackElo "2092"]
[Annotator "TA"]
[PlyCount "103"]
[EventDate "2022.08.05"]
[EventType "swiss"]
[EventCountry "NED"]
[SourceTitle "playchess.com"]
[Source "ChessBase"]
[SourceQuality "1"]
[TimeControl "40/5400+30:1800+30"]

{[%evp 12,103,57,58,44,54,55,46,59,52,51,45,50,43,41,40,45,41,37,41,36,38,40,44,43,23,24,20,23,25,23,23,23,23,23,18,25,10,18,0,2,4,14,8,17,20,17,0,0,8,20,16,18,15,47,25,48,48,68,32,69,69,70,76,69,69,69,58,90,57,166,151,165,158,214,214,214,220,227,166,166,166,238,196,260,170,170,89,165,0,170,0,112,0]} 1. e4 {[%emt 1:31:00]} e5 {[%emt 0:19:46]} 2. Nf3 {[%emt 0:00:00]} Nf6 {[%emt 0:00:13]} 3. Nxe5 {[%emt 0:00:00]} Nxe4 {[%emt 0:00:20]} 4. Qe2 {[%emt 0:00:00]} Qe7 {[%emt 0:00:08]} 5. Qxe4 {[%emt 0:00:00]} d6 {[%emt 0:00:10]} 6. d4 {[%emt 0:00:00]} dxe5 {[%emt 0:00:06]} 7. dxe5 {[%emt 0:00:00]} Nc6 {[%emt 0:00:07] C42: Petroff Defence: 3 Nxe5 and unusual White 3rd moves.} 8. Nc3 $1 {[%emt 0:00:00][%mdl 4] aiming for Nd5. outshines the older 8.Bb5.} Qxe5 {[%emt 0:00:06]} 9. Qxe5+ {[%emt 0:00:00]} Nxe5 {[%emt 0:00:07] White is slightly better.} 10. Nb5 {[%emt 0:00:00]} Bb4+ {[%emt 0:00:09]} 11. Bd2 {[%emt 0:00:00]} Bxd2+ {[%emt 0:00:07]} 12. Kxd2 {[%emt 0:00:00]} Kd8 {[%emt 0:00:14]} 13. Re1 {[%emt 0:00:00]} f6 {[%emt 0:01:08]} 14. f4 {[%emt 0:00:00]} Ng6 {[%emt 0:00:43]} 15. g3 {[%emt 0:00:00]} Bd7 {[%emt 0:02:16]} 16. Bc4 {[%emt 0:00:00]} c6 {[%emt 0:05:55]} 17. Nd4 {[%emt 0:00:00]} Kc7 {[%emt 0:00:18] [#]} 18. Ne6+ $146 {[%emt 0:00:00]} ({Predecessor:} 18. h4 b5 19. Bd3 Rhe8 20. Bf5 Nf8 21. h5 Rxe1 22. Rxe1 Re8 23. Bxd7 Rxe1 24. Kxe1 Kxd7 {½-½ (36) Isha,S (2236)-Stefansson,V (2461) Piestany 2022}) 18... Bxe6 {[%emt 0:00:10]} 19. Rxe6 {[%emt 0:00:00]} Rhe8 {[%emt 0:04:08]} 20. Rhe1 {[%emt 0:00:00]} (20. Ree1 {seems wilder.} Re7 21. a3 Rae8 22. Rxe7+ Rxe7 23. b4) 20... Rxe6 {[%emt 0:00:15]} 21. Rxe6 $11 {[%emt 0:00:00][%mdl 4096] Endgame KRB-KRN} Kd7 {[%emt 0:02:11]} 22. Re3 {[%emt 0:00:00]} Re8 {[%emt 0:00:48]} 23. Ra3 {[%emt 0:00:00]} a6 {[%emt 0:00:25]} 24. Bd3 {[%emt 0:00:00]} Ne7 {[%emt 0:02:11]} 25. Ra5 {[%emt 0:00:00]} h6 {[%emt 0:01:03]} 26. Ra4 {[%emt 0:00:00]} Nd5 {[%emt 0:03:37]} 27. Rd4 {[%emt 0:00:00] Black must now prevent c4.} Kc7 {[%emt 0:00:09]} 28. c4 {[%emt 0:00:00]} Nb4 {[%emt 0:03:46]} 29. Bg6 {[%emt 0:00:00]} Re7 {[%emt 0:00:46]} 30. c5 {[%emt 0:00:00]} Nd5 {[%emt 0:00:49]} (30... Nxa2 $2 31. Bb1 $18) 31. Be4 {[%emt 0:00:00]} Rd7 {[%emt 0:04:07]} 32. a3 {[%emt 0:00:00]} Ne7 {[%emt 0:01:00]} 33. Kd3 {[%emt 0:00:00]} Rxd4+ {[%emt 0:02:16]} 34. Kxd4 {[%emt 0:00:00] KB-KN} Kd7 {[%emt 0:00:55]} 35. Bf3 {[%emt 0:17:00]} Kc7 {[%emt 0:01:10]} 36. Bg4 {[%emt 0:00:00]} Kd8 {[%emt 0:00:19]} 37. Be6 {[%emt 0:00:00]} Kc7 {[%emt 0:00:54]} 38. Ke4 {[%emt 0:00:00]} Kd8 {[%emt 0:03:25]} 39. Bf7 {[%emt 0:00:00]} Kd7 {[%emt 0:01:02]} 40. h4 {[%emt 0:00:00]} Nc8 {[%emt 0:09:15]} ({Black should play} 40... a5 $14) 41. g4 {[%emt 0:00:00]} Ke7 {[%emt 0:31:29]} 42. Bc4 {[%emt 0:00:00]} Kd7 {[%emt 0:01:48]} (42... b5 $16 {was necessary.}) 43. g5 $18 {[%emt 0:01:07]} Ne7 {[%emt 0:01:26]} 44. gxh6 {[%emt 0:03:41]} gxh6 {[%emt 0:00:07]} 45. Bf7 {[%emt 0:00:16]} Kc7 {[%emt 0:01:07]} 46. Be6 {[%emt 0:08:47]} Kd8 {[%emt 0:02:26]} (46... b5 $142 47. Kf3 Ng6) 47. f5 {[%emt 0:13:16]} Ke8 {[%emt 0:04:07]} (47... a5 {was worth a try.} 48. Bf7 b6) 48. Kd4 {[%emt 0:02:11]} Kd8 {[%emt 0:00:27] [#]} 49. Kc4 {[%emt 0:00:19]} (49. Ke3 $1 $18) 49... Kc7 {[%emt 0:00:20]} (49... Nc8 $16) 50. Kd4 {[%emt 0:00:29]} Kd8 $1 {[%emt 0:00:06] [#]} 51. Kc4 {[%emt 0:00:06]} (51. Ke3 $1 $18) 51... Kc7 $16 {[%emt 0:00:04]} 52. Kd4 {[%emt 0:00:04] Weighted Error Value: White=0.20 (precise) /Black=0.12 (very precise)} ({White should try} 52. b4 $16) 1/2-1/2